[Event "TePe Sigeman & Co Chess Tournament 2024"]
[Site "Elite Plaza Hotel, Gustav Adolfs Torg 49, Malmo, Sweden"]
[Date "2024.04.27"]
[Round "1.1"]
[White "Maurizzi, Marc'Andria"]
[Black "Keymer, Vincent"]
[Result "0-1"]
[TimeControl "90 minutes for 40 moves + 30 minutes for the rest of the game + 30 seconds per move from move one. (Tiebreak rounds 8-12: 3 minutes + 2 seconds increment)"]
[WhiteTitle "GM"]
[BlackTitle "GM"]
[WhiteFideId "36083534"]
[BlackFideId "12940690"]
[WhiteElo "2605"]
[BlackElo "2726"]

1. d4 {[%clk 01:30:41]} {[%emt 00:00:17]} Nf6 {[%clk 01:30:55]} {[%emt
00:00:05]} 2. c4 {[%clk 01:31:08]} {[%emt 00:00:03]} e6 {[%clk 01:31:21]}
{[%emt 00:00:03]} 3. Nf3 {[%clk 01:31:35]} {[%emt 00:00:03]} d5 {[%clk
01:31:47]} {[%emt 00:00:04]} 4. Nc3 {[%clk 01:32:01]} {[%emt 00:00:05]} c6
{[%clk 01:28:51]} {[%emt 00:03:26]} 5. Bg5 {[%clk 01:31:01]} {[%emt 00:01:30]}
h6 {[%clk 01:28:36]} {[%emt 00:00:45]} 6. Bxf6 {[%clk 01:30:25]} {[%emt
00:01:06]} Qxf6 {[%clk 01:29:01]} {[%emt 00:00:05]} 7. a3 {[%clk 01:30:47]}
{[%emt 00:00:09]} dxc4 {[%clk 01:20:52]} {[%emt 00:08:39]} 8. e3 {[%clk
01:30:33]} {[%emt 00:00:44]} b5 {[%clk 01:15:17]} {[%emt 00:06:05]} 9. Ne5
{[%clk 01:30:21]} {[%emt 00:00:42]} Bd6 {[%clk 01:02:00]} {[%emt 00:13:47]} 10.
Ne4 {[%clk 01:30:47]} {[%emt 00:00:04]} Qe7 {[%clk 00:54:02]} {[%emt 00:08:28]}
11. Qh5 {[%clk 01:30:57]} {[%emt 00:00:20]} Bc7 {[%clk 00:45:49]} {[%emt
00:08:44]} 12. f4 {[%clk 01:02:30]} {[%emt 00:28:56]} Bb7 {[%clk 00:28:46]}
{[%emt 00:17:34]} 13. Nc5 {[%clk 00:47:21]} {[%emt 00:15:38]} Bd6 {[%clk
00:18:03]} {[%emt 00:11:13]} 14. Ne4 {[%clk 00:20:19]} {[%emt 00:27:32]} O-O
{[%clk 00:18:18]} {[%emt 00:00:15]} 15. g4 {[%clk 00:19:12]} {[%emt 00:01:36]}
c5 {[%clk 00:12:51]} {[%emt 00:05:57]} 16. Bg2 {[%clk 00:16:30]} {[%emt
00:03:13]} cxd4 {[%clk 00:12:44]} {[%emt 00:00:37]} 17. g5 {[%clk 00:10:05]}
{[%emt 00:06:55]} Bxe5 {[%clk 00:08:39]} {[%emt 00:04:36]} 18. gxh6 {[%clk
00:07:38]} {[%emt 00:02:56]} Nd7 {[%clk 00:06:30]} {[%emt 00:02:40]} 19. fxe5
{[%clk 00:00:59]} {[%emt 00:07:10]} g6 {[%clk 00:06:55]} {[%emt 00:00:05]} 20.
Qh3 {[%clk 00:01:27]} {[%emt 00:00:01]} Nxe5 {[%clk 00:06:31]} {[%emt
00:00:53]} 21. O-O {[%clk 00:01:53]} {[%emt 00:00:03]} Bxe4 {[%clk 00:03:26]}
{[%emt 00:03:36]} 22. Bxe4 {[%clk 00:02:23]} Qg5+ {[%clk 00:03:36]} {[%emt
00:00:20]} 23. Kh1 {[%clk 00:02:08]} {[%emt 00:00:45]} Rad8 {[%clk 00:04:02]}
{[%emt 00:00:05]} 24. Rg1 {[%clk 00:01:09]} {[%emt 00:01:28]} Qxe3 {[%clk
00:03:07]} {[%emt 00:01:25]} 25. Qh4 {[%clk 00:01:37]} {[%emt 00:00:03]} Kh7
{[%clk 00:02:41]} {[%emt 00:00:55]} 26. Raf1 {[%clk 00:01:05]} {[%emt
00:01:02]} Qxh6 {[%clk 00:00:55]} {[%emt 00:02:16]} 27. Qe7 {[%clk 00:01:04]}
{[%emt 00:00:29]} Qg7 {[%clk 00:00:39]} {[%emt 00:00:48]} 28. Rg5 {[%clk
00:01:03]} {[%emt 00:00:31]} f5 {[%clk 00:00:56]} {[%emt 00:00:13]} 29. Qxe6
{[%clk 00:01:26]} {[%emt 00:00:07]} Rde8 {[%clk 00:00:57]} {[%emt 00:00:30]}
0-1

[Event "TePe Sigeman & Co Chess Tournament 2024"]
[Site "Elite Plaza Hotel, Gustav Adolfs Torg 49, Malmo, Sweden"]
[Date "2024.04.27"]
[Round "1.2"]
[White "Korobov, Anton"]
[Black "Abdusattorov, Nodirbek"]
[Result "1-0"]
[TimeControl "90 minutes for 40 moves + 30 minutes for the rest of the game + 30 seconds per move from move one. (Tiebreak rounds 8-12: 3 minutes + 2 seconds increment)"]
[WhiteTitle "GM"]
[BlackTitle "GM"]
[WhiteFideId "14105730"]
[BlackFideId "14204118"]
[WhiteElo "2651"]
[BlackElo "2765"]

1. c4 {[%clk 01:30:57]} {[%emt 00:00:02]} e5 {[%clk 01:30:20]} {[%emt
00:00:40]} 2. Nc3 {[%clk 01:31:17]} {[%emt 00:00:10]} Bb4 {[%clk 01:30:26]}
{[%emt 00:00:24]} 3. Qb3 {[%clk 01:31:27]} {[%emt 00:00:19]} a5 {[%clk
01:27:17]} {[%emt 00:03:39]} 4. g3 {[%clk 01:29:19]} {[%emt 00:02:38]} Nf6
{[%clk 01:26:05]} {[%emt 00:01:43]} 5. Bg2 {[%clk 01:28:55]} {[%emt 00:00:53]}
O-O {[%clk 01:25:03]} {[%emt 00:01:32]} 6. Nf3 {[%clk 01:28:54]} {[%emt
00:00:32]} Nc6 {[%clk 01:20:17]} {[%emt 00:05:15]} 7. O-O {[%clk 01:26:08]}
{[%emt 00:03:16]} Re8 {[%clk 01:15:05]} {[%emt 00:05:43]} 8. d3 {[%clk
01:21:48]} {[%emt 00:04:49]} Nd4 {[%clk 01:12:46]} {[%emt 00:02:50]} 9. Nxd4
{[%clk 01:14:57]} {[%emt 00:07:20]} exd4 {[%clk 01:12:58]} {[%emt 00:00:18]} 10.
Ne4 {[%clk 01:15:15]} {[%emt 00:00:12]} Nxe4 {[%clk 01:04:49]} {[%emt
00:08:40]} 11. dxe4 {[%clk 01:14:03]} {[%emt 00:01:41]} Bc5 {[%clk 01:04:45]}
{[%emt 00:00:33]} 12. Qd3 {[%clk 01:07:20]} {[%emt 00:07:13]} Qe7 {[%clk
00:57:11]} {[%emt 00:08:04]} 13. b3 {[%clk 01:02:39]} {[%emt 00:05:11]} d6
{[%clk 00:49:39]} {[%emt 00:08:02]} 14. Bb2 {[%clk 00:58:26]} {[%emt 00:04:42]}
f5 {[%clk 00:50:03]} {[%emt 00:00:07]} 15. Bxd4 {[%clk 00:56:13]} {[%emt
00:02:43]} fxe4 {[%clk 00:50:22]} {[%emt 00:00:11]} 16. Qc3 {[%clk 00:56:33]}
{[%emt 00:00:10]} b6 {[%clk 00:44:11]} {[%emt 00:06:42]} 17. Rad1 {[%clk
00:50:33]} {[%emt 00:06:29]} Bb7 {[%clk 00:42:29]} {[%emt 00:02:13]} 18. e3
{[%clk 00:43:51]} {[%emt 00:07:12]} h5 {[%clk 00:36:47]} {[%emt 00:06:12]} 19.
Qb2 {[%clk 00:43:21]} {[%emt 00:00:59]} h4 {[%clk 00:34:15]} {[%emt 00:03:02]}
20. Bc3 {[%clk 00:38:15]} {[%emt 00:05:36]} c6 {[%clk 00:26:29]} {[%emt
00:08:16]} 21. a3 {[%clk 00:36:19]} {[%emt 00:02:26]} d5 {[%clk 00:25:54]}
{[%emt 00:01:06]} 22. b4 {[%clk 00:36:26]} {[%emt 00:00:22]} Bd6 {[%clk
00:25:18]} {[%emt 00:01:06]} 23. cxd5 {[%clk 00:36:14]} {[%emt 00:00:42]} cxd5
{[%clk 00:23:28]} {[%emt 00:02:21]} 24. Rd2 {[%clk 00:35:33]} {[%emt 00:01:10]}
Rec8 {[%clk 00:21:05]} {[%emt 00:02:53]} 25. Rfd1 {[%clk 00:26:58]} {[%emt
00:09:05]} axb4 {[%clk 00:19:07]} {[%emt 00:02:29]} 26. Bxb4 {[%clk 00:27:03]}
{[%emt 00:00:24]} Bxb4 {[%clk 00:19:26]} {[%emt 00:00:10]} 27. axb4 {[%clk
00:27:02]} {[%emt 00:00:31]} Rc4 {[%clk 00:19:08]} {[%emt 00:00:47]} 28. Rd4
{[%clk 00:23:34]} {[%emt 00:03:58]} Rac8 {[%clk 00:19:28]} {[%emt 00:00:11]} 29.
Rxc4 {[%clk 00:20:34]} {[%emt 00:03:30]} dxc4 {[%clk 00:19:02]} {[%emt
00:00:57]} 30. Qd4 {[%clk 00:20:07]} {[%emt 00:00:56]} Qe6 {[%clk 00:13:05]}
{[%emt 00:06:28]} 31. b5 {[%clk 00:17:54]} {[%emt 00:02:42]} c3 {[%clk
00:12:53]} {[%emt 00:00:42]} 32. Rc1 {[%clk 00:17:58]} {[%emt 00:00:26]} Qf6
{[%clk 00:10:22]} {[%emt 00:02:58]} 33. Qd7 {[%clk 00:15:31]} {[%emt 00:03:00]}
Qf7 {[%clk 00:09:50]} {[%emt 00:01:03]} 34. Qd4 {[%clk 00:15:25]} {[%emt
00:00:36]} Rc5 {[%clk 00:06:36]} {[%emt 00:03:45]} 35. Qd8+ {[%clk 00:14:29]}
{[%emt 00:01:26]} Qf8 {[%clk 00:06:53]} {[%emt 00:00:13]} 36. Qxb6 {[%clk
00:13:39]} {[%emt 00:01:19]} Qe7 {[%clk 00:06:35]} {[%emt 00:00:48]} 37. Qa5
{[%clk 00:12:53]} {[%emt 00:01:17]} Qd7 {[%clk 00:04:59]} {[%emt 00:02:06]} 38.
Qa2+ {[%clk 00:12:03]} {[%emt 00:01:19]} Kh8 {[%clk 00:03:49]} {[%emt
00:01:40]} 39. Bf1 {[%clk 00:11:34]} {[%emt 00:00:59]} Rc8 {[%clk 00:02:55]}
{[%emt 00:01:25]} 40. Qb3 {[%clk 00:08:03]} {[%emt 00:04:00]} Qd2 {[%clk
00:00:47]} {[%emt 00:02:38]} 41. Rc2 {[%clk 00:08:07]} {[%emt 00:00:26]} Qe1
{[%clk 00:21:32]} {[%emt 00:09:45]} 42. Qf7 {[%clk 00:35:00]} {[%emt 00:03:37]}
Ba8 {[%clk 00:17:40]} {[%emt 00:04:23]} 43. Qd7 {[%clk 00:31:44]} {[%emt
00:03:45]} Rf8 {[%clk 00:11:02]} {[%emt 00:07:08]} 44. Qc7 {[%clk 00:31:53]}
{[%emt 00:00:21]} Qd1 {[%clk 00:11:22]} {[%emt 00:00:10]} 45. Qxc3 {[%clk
00:32:00]} {[%emt 00:00:22]} Rd8 {[%clk 00:11:48]} {[%emt 00:00:04]} 46. Rc1
{[%clk 00:31:09]} {[%emt 00:01:21]} Qf3 {[%clk 00:12:17]} {[%emt 00:00:02]} 47.
Qb2 {[%clk 00:30:49]} {[%emt 00:00:50]} Bd5 {[%clk 00:12:17]} {[%emt 00:00:30]}
48. b6 {[%clk 00:30:20]} {[%emt 00:00:59]} Rf8 {[%clk 00:12:35]} {[%emt
00:00:12]} 49. Rc7 {[%clk 00:29:20]} {[%emt 00:01:30]} 1-0

[Event "TePe Sigeman & Co Chess Tournament 2024"]
[Site "Elite Plaza Hotel, Gustav Adolfs Torg 49, Malmo, Sweden"]
[Date "2024.04.27"]
[Round "1.3"]
[White "Erigaisi, Arjun"]
[Black "Ju, Wenjun"]
[Result "1-0"]
[TimeControl "90 minutes for 40 moves + 30 minutes for the rest of the game + 30 seconds per move from move one. (Tiebreak rounds 8-12: 3 minutes + 2 seconds increment)"]
[WhiteTitle "GM"]
[BlackTitle "GM"]
[WhiteFideId "35009192"]
[BlackFideId "8603006"]
[WhiteElo "2756"]
[BlackElo "2559"]

1. Nf3 {[%clk 01:30:48]} {[%emt 00:00:11]} d5 {[%clk 01:30:44]} {[%emt
00:00:17]} 2. g3 {[%clk 01:31:10]} {[%emt 00:00:08]} Nf6 {[%clk 01:28:32]}
{[%emt 00:02:42]} 3. Bg2 {[%clk 01:31:33]} {[%emt 00:00:07]} g6 {[%clk
01:27:55]} {[%emt 00:01:08]} 4. d4 {[%clk 01:31:56]} {[%emt 00:00:07]} Bg7
{[%clk 01:27:53]} {[%emt 00:00:32]} 5. c4 {[%clk 01:32:11]} {[%emt 00:00:15]}
dxc4 {[%clk 01:25:29]} {[%emt 00:02:54]} 6. O-O {[%clk 01:31:25]} {[%emt
00:01:15]} O-O {[%clk 01:25:54]} {[%emt 00:00:06]} 7. Na3 {[%clk 01:31:49]}
{[%emt 00:00:05]} c5 {[%clk 01:25:39]} {[%emt 00:00:46]} 8. Nxc4 {[%clk
01:32:11]} {[%emt 00:00:08]} Be6 {[%clk 01:23:43]} {[%emt 00:02:26]} 9. Nfe5
{[%clk 01:32:27]} {[%emt 00:00:14]} Qc8 {[%clk 01:21:55]} {[%emt 00:02:19]} 10.
Bd2 {[%clk 01:32:48]} {[%emt 00:00:08]} Bd5 {[%clk 01:15:41]} {[%emt 00:06:44]}
11. Rc1 {[%clk 01:32:44]} {[%emt 00:00:34]} Bxg2 {[%clk 01:15:44]} {[%emt
00:00:27]} 12. Kxg2 {[%clk 01:33:06]} {[%emt 00:00:07]} cxd4 {[%clk 01:16:10]}
{[%emt 00:00:04]} 13. Nb6 {[%clk 01:18:29]} {[%emt 00:15:07]} Qe6 {[%clk
01:14:35]} {[%emt 00:02:05]} 14. Nxa8 {[%clk 01:18:51]} {[%emt 00:00:08]} Qxe5
{[%clk 01:15:03]} {[%emt 00:00:03]} 15. Qb3 {[%clk 01:12:12]} {[%emt 00:07:08]}
Qxe2 {[%clk 01:03:03]} {[%emt 00:12:30]} 16. Bg5 {[%clk 01:01:14]} {[%emt
00:11:28]} b6 {[%clk 00:27:53]} {[%emt 00:35:40]} 17. Nc7 {[%clk 00:46:04]}
{[%emt 00:15:39]} Nbd7 {[%clk 00:25:49]} {[%emt 00:02:35]} 18. Rfe1 {[%clk
00:45:12]} {[%emt 00:01:22]} Qg4 {[%clk 00:25:22]} {[%emt 00:00:56]} 19. Bxf6
{[%clk 00:44:18]} {[%emt 00:01:23]} exf6 {[%clk 00:19:12]} {[%emt 00:06:41]} 20.
h3 {[%clk 00:34:39]} {[%emt 00:10:09]} Qg5 {[%clk 00:12:50]} {[%emt 00:06:52]}
21. Qb5 {[%clk 00:32:53]} {[%emt 00:02:15]} Rd8 {[%clk 00:05:18]} {[%emt
00:08:02]} 22. Re8+ {[%clk 00:32:32]} {[%emt 00:00:51]} Rxe8 {[%clk 00:05:43]}
{[%emt 00:00:06]} 23. Qxg5 {[%clk 00:32:57]} {[%emt 00:00:04]} fxg5 {[%clk
00:06:10]} {[%emt 00:00:03]} 24. Nxe8 {[%clk 00:33:22]} {[%emt 00:00:06]} Nc5
{[%clk 00:05:57]} {[%emt 00:00:43]} 25. Nxg7 {[%clk 00:32:03]} {[%emt
00:01:49]} Kxg7 {[%clk 00:06:23]} {[%emt 00:00:03]} 26. b4 {[%clk 00:32:28]}
{[%emt 00:00:05]} Ne6 {[%clk 00:06:48]} {[%emt 00:00:05]} 27. Rc8 {[%clk
00:32:52]} {[%emt 00:00:05]} Kf6 {[%clk 00:06:37]} {[%emt 00:00:42]} 28. Kf3
{[%clk 00:31:31]} {[%emt 00:01:51]} Ke5 {[%clk 00:03:46]} {[%emt 00:03:21]} 29.
Ra8 {[%clk 00:31:49]} {[%emt 00:00:12]} Kd5 {[%clk 00:03:10]} {[%emt 00:01:07]}
30. Rxa7 {[%clk 00:32:12]} {[%emt 00:00:06]} 1-0

[Event "TePe Sigeman & Co Chess Tournament 2024"]
[Site "Elite Plaza Hotel, Gustav Adolfs Torg 49, Malmo, Sweden"]
[Date "2024.04.27"]
[Round "1.4"]
[White "Svidler, Peter"]
[Black "Grandelius, Nils"]
[Result "1/2-1/2"]
[TimeControl "90 minutes for 40 moves + 30 minutes for the rest of the game + 30 seconds per move from move one. (Tiebreak rounds 8-12: 3 minutes + 2 seconds increment)"]
[WhiteTitle "GM"]
[BlackTitle "GM"]
[WhiteFideId "4102142"]
[BlackFideId "1710400"]
[WhiteElo "2689"]
[BlackElo "2664"]

1. e4 {[%clk 01:30:57]} {[%emt 00:00:02]} e5 {[%clk 01:30:24]} {[%emt
00:00:37]} 2. Nf3 {[%clk 01:31:02]} {[%emt 00:00:25]} Nc6 {[%clk 01:30:45]}
{[%emt 00:00:08]} 3. Bc4 {[%clk 01:28:05]} {[%emt 00:03:27]} Nf6 {[%clk
01:30:32]} {[%emt 00:00:42]} 4. d3 {[%clk 01:28:30]} {[%emt 00:00:07]} h6
{[%clk 01:29:21]} {[%emt 00:01:40]} 5. a4 {[%clk 01:13:56]} {[%emt 00:15:05]}
Bc5 {[%clk 01:28:03]} {[%emt 00:01:46]} 6. a5 {[%clk 01:10:15]} {[%emt
00:04:13]} a6 {[%clk 01:27:33]} {[%emt 00:00:59]} 7. c3 {[%clk 01:07:01]}
{[%emt 00:03:45]} O-O {[%clk 01:26:55]} {[%emt 00:01:06]} 8. O-O {[%clk
01:06:10]} {[%emt 00:01:23]} Ba7 {[%clk 01:26:00]} {[%emt 00:01:25]} 9. Re1
{[%clk 01:01:07]} {[%emt 00:05:33]} d6 {[%clk 01:15:47]} {[%emt 00:10:43]} 10.
h3 {[%clk 00:58:58]} {[%emt 00:02:39]} Kh8 {[%clk 00:54:01]} {[%emt 00:22:14]}
11. Nbd2 {[%clk 00:50:12]} {[%emt 00:09:17]} Nh7 {[%clk 00:51:58]} {[%emt
00:02:33]} 12. Bb3 {[%clk 00:41:50]} {[%emt 00:08:54]} Ng5 {[%clk 00:37:35]}
{[%emt 00:14:53]} 13. Nf1 {[%clk 00:29:10]} {[%emt 00:13:10]} Nxf3+ {[%clk
00:35:45]} {[%emt 00:02:20]} 14. Qxf3 {[%clk 00:29:30]} {[%emt 00:00:10]} f5
{[%clk 00:34:51]} {[%emt 00:01:24]} 15. Be3 {[%clk 00:29:18]} {[%emt 00:00:42]}
fxe4 {[%clk 00:31:40]} {[%emt 00:03:42]} 16. Qxe4 {[%clk 00:29:15]} {[%emt
00:00:33]} Bf5 {[%clk 00:29:42]} {[%emt 00:02:27]} 17. Qc4 {[%clk 00:28:34]}
{[%emt 00:01:11]} Bh7 {[%clk 00:24:23]} {[%emt 00:05:49]} 18. Bxa7 {[%clk
00:16:05]} {[%emt 00:12:59]} Rxa7 {[%clk 00:24:15]} {[%emt 00:00:38]} 19. Ng3
{[%clk 00:16:26]} {[%emt 00:00:09]} Ra8 {[%clk 00:18:59]} {[%emt 00:05:47]} 20.
Bc2 {[%clk 00:10:47]} {[%emt 00:06:08]} Rf4 {[%clk 00:15:18]} {[%emt 00:04:10]}
21. Qb3 {[%clk 00:10:05]} {[%emt 00:01:12]} Rb8 {[%clk 00:15:15]} {[%emt
00:00:33]} 22. d4 {[%clk 00:06:48]} {[%emt 00:03:48]} Bg8 {[%clk 00:10:34]}
{[%emt 00:05:11]} 23. d5 {[%clk 00:05:57]} {[%emt 00:01:22]} b6 {[%clk
00:09:11]} {[%emt 00:01:53]} 24. axb6 {[%clk 00:03:41]} {[%emt 00:02:45]} Rxb6
{[%clk 00:09:32]} {[%emt 00:00:09]} 25. Qa2 {[%clk 00:04:10]} {[%emt 00:00:02]}
Ne7 {[%clk 00:08:25]} {[%emt 00:01:37]} 26. c4 {[%clk 00:03:45]} {[%emt
00:00:54]} c6 {[%clk 00:07:20]} {[%emt 00:01:34]} 27. Be4 {[%clk 00:03:58]}
{[%emt 00:00:18]} cxd5 {[%clk 00:07:42]} {[%emt 00:00:09]} 28. cxd5 {[%clk
00:04:24]} {[%emt 00:00:04]} Qb8 {[%clk 00:03:05]} {[%emt 00:05:06]} 29. Re2
{[%clk 00:03:59]} {[%emt 00:00:55]} Qb7 {[%clk 00:03:27]} {[%emt 00:00:09]} 30.
Rd1 {[%clk 00:03:21]} {[%emt 00:01:08]} Rf8 {[%clk 00:01:43]} {[%emt 00:02:14]}
31. Red2 {[%clk 00:03:08]} {[%emt 00:00:43]} Rb3 {[%clk 00:01:33]} {[%emt
00:00:40]} 32. Nf1 {[%clk 00:01:44]} {[%emt 00:01:54]} Qb6 {[%clk 00:01:09]}
{[%emt 00:00:54]} 33. Kh2 {[%clk 00:01:29]} {[%emt 00:00:45]} Rb5 {[%clk
00:01:14]} {[%emt 00:00:25]} 34. f3 {[%clk 00:01:25]} {[%emt 00:00:34]} Rb8
{[%clk 00:01:14]} {[%emt 00:00:30]} 35. Rc2 {[%clk 00:00:33]} {[%emt 00:01:22]}
Ra5 {[%clk 00:01:02]} {[%emt 00:00:42]} 36. Qc4 {[%clk 00:01:01]} {[%emt
00:00:02]} Rc5 {[%clk 00:01:04]} {[%emt 00:00:28]} 37. Qe2 {[%clk 00:01:28]}
{[%emt 00:00:03]} Nxd5 {[%clk 00:00:36]} {[%emt 00:00:58]} 38. Rxc5 {[%clk
00:00:39]} {[%emt 00:01:20]} Qxc5 {[%clk 00:00:36]} {[%emt 00:00:30]} 39. Bxd5
{[%clk 00:00:57]} {[%emt 00:00:12]} Bxd5 {[%clk 00:01:02]} {[%emt 00:00:04]} 40.
Qd2 {[%clk 00:01:18]} {[%emt 00:00:09]} Bf7 {[%clk 00:00:41]} {[%emt 00:00:50]}
41. Qxd6 {[%clk 00:30:22]} {[%emt 00:01:27]} 1/2-1/2

[Event "TePe Sigeman & Co Chess Tournament 2024"]
[Site "Elite Plaza Hotel, Gustav Adolfs Torg 49, Malmo, Sweden"]
[Date "2024.05.02"]
[Round "6.1"]
[White "Maurizzi, Marc'Andria"]
[Black "Ju, Wenjun"]
[Result "1/2-1/2"]
[TimeControl "90 minutes for 40 moves + 30 minutes for the rest of the game + 30 seconds per move from move one. (Tiebreak rounds 8-12: 3 minutes + 2 seconds increment)"]
[WhiteTitle "GM"]
[BlackTitle "GM"]
[WhiteFideId "36083534"]
[BlackFideId "8603006"]
[WhiteElo "2605"]
[BlackElo "2559"]

1. e4 {[%clk 01:30:55]} {[%emt 00:00:04]} e5 {[%clk 01:30:55]} {[%emt
00:00:05]} 2. Nf3 {[%clk 01:31:21]} {[%emt 00:00:04]} Nf6 {[%clk 01:31:16]}
{[%emt 00:00:08]} 3. Nxe5 {[%clk 01:30:24]} {[%emt 00:01:27]} d6 {[%clk
01:31:43]} {[%emt 00:00:03]} 4. Nf3 {[%clk 01:30:50]} {[%emt 00:00:04]} Nxe4
{[%clk 01:32:09]} {[%emt 00:00:04]} 5. d4 {[%clk 01:30:41]} {[%emt 00:00:39]}
d5 {[%clk 01:32:19]} {[%emt 00:00:20]} 6. Bd3 {[%clk 01:31:08]} {[%emt
00:00:04]} Bf5 {[%clk 01:31:53]} {[%emt 00:00:56]} 7. O-O {[%clk 01:30:50]}
{[%emt 00:00:48]} Be7 {[%clk 01:32:20]} {[%emt 00:00:04]} 8. Re1 {[%clk
01:14:08]} {[%emt 00:17:11]} O-O {[%clk 01:31:34]} {[%emt 00:01:16]} 9. Nbd2
{[%clk 01:13:34]} {[%emt 00:01:04]} Nd6 {[%clk 01:31:56]} {[%emt 00:00:08]} 10.
Nf1 {[%clk 01:13:41]} {[%emt 00:00:23]} Bxd3 {[%clk 01:31:56]} {[%emt
00:00:31]} 11. Qxd3 {[%clk 01:14:09]} {[%emt 00:00:02]} c6 {[%clk 01:31:57]}
{[%emt 00:00:28]} 12. Bf4 {[%clk 01:08:50]} {[%emt 00:05:49]} Na6 {[%clk
01:32:23]} {[%emt 00:00:05]} 13. Ne3 {[%clk 01:04:31]} {[%emt 00:04:49]} Nc7
{[%clk 01:24:08]} {[%emt 00:08:45]} 14. Bxd6 {[%clk 00:56:54]} {[%emt
00:08:08]} Bxd6 {[%clk 01:24:33]} {[%emt 00:00:05]} 15. Nf5 {[%clk 00:56:41]}
{[%emt 00:00:43]} g6 {[%clk 01:21:52]} {[%emt 00:03:10]} 16. Nxd6 {[%clk
00:54:34]} {[%emt 00:02:37]} Qxd6 {[%clk 01:22:18]} {[%emt 00:00:04]} 17. Ne5
{[%clk 00:54:01]} {[%emt 00:01:04]} Rae8 {[%clk 01:16:05]} {[%emt 00:06:42]} 18.
h4 {[%clk 00:52:05]} {[%emt 00:02:26]} f6 {[%clk 01:10:47]} {[%emt 00:05:48]}
19. Nf3 {[%clk 00:51:40]} {[%emt 00:00:55]} Qd7 {[%clk 01:02:57]} {[%emt
00:08:20]} 20. g3 {[%clk 00:42:32]} {[%emt 00:09:38]} Nb5 {[%clk 00:58:11]}
{[%emt 00:05:17]} 21. h5 {[%clk 00:39:35]} {[%emt 00:03:27]} g5 {[%clk
00:58:20]} {[%emt 00:00:22]} 22. Nh2 {[%clk 00:28:37]} {[%emt 00:11:28]} Nd6
{[%clk 00:50:25]} {[%emt 00:08:26]} 23. Kg2 {[%clk 00:28:53]} {[%emt 00:00:13]}
Qf5 {[%clk 00:37:45]} {[%emt 00:13:10]} 24. Qxf5 {[%clk 00:25:49]} {[%emt
00:03:34]} Nxf5 {[%clk 00:38:13]} {[%emt 00:00:02]} 25. Ng4 {[%clk 00:25:29]}
{[%emt 00:00:49]} Kg7 {[%clk 00:37:17]} {[%emt 00:01:26]} 26. c3 {[%clk
00:25:52]} {[%emt 00:00:07]} Nd6 {[%clk 00:37:31]} {[%emt 00:00:16]} 27. f3
{[%clk 00:24:43]} {[%emt 00:01:38]} Rxe1 {[%clk 00:35:55]} {[%emt 00:02:07]} 28.
Rxe1 {[%clk 00:25:12]} Re8 {[%clk 00:36:21]} {[%emt 00:00:04]} 29. Rxe8 {[%clk
00:25:22]} {[%emt 00:00:20]} Nxe8 {[%clk 00:36:48]} {[%emt 00:00:02]} 30. Ne3
{[%clk 00:25:46]} {[%emt 00:00:05]} Nd6 {[%clk 00:37:08]} {[%emt 00:00:11]} 31.
g4 {[%clk 00:26:11]} {[%emt 00:00:05]} f5 {[%clk 00:31:40]} {[%emt 00:05:58]}
32. Kf2 {[%clk 00:25:17]} {[%emt 00:01:24]} Kf6 {[%clk 00:30:54]} {[%emt
00:01:16]} 33. Ke2 {[%clk 00:25:38]} {[%emt 00:00:08]} Ke6 {[%clk 00:30:05]}
{[%emt 00:01:20]} 34. Kd3 {[%clk 00:25:59]} {[%emt 00:00:06]} fxg4 {[%clk
00:24:45]} {[%emt 00:05:53]} 35. fxg4 {[%clk 00:26:27]} {[%emt 00:00:02]} Ne4
{[%clk 00:25:11]} {[%emt 00:00:05]} 36. a4 {[%clk 00:26:18]} {[%emt 00:00:39]}
Nf2+ {[%clk 00:25:20]} {[%emt 00:00:21]} 37. Ke2 {[%clk 00:26:45]} {[%emt
00:00:03]} Ne4 {[%clk 00:25:47]} {[%emt 00:00:02]} 38. Kd3 {[%clk 00:27:11]}
{[%emt 00:00:04]} Nf2+ {[%clk 00:26:15]} {[%emt 00:00:02]} 39. Ke2 {[%clk
00:27:38]} {[%emt 00:00:03]} Ne4 {[%clk 00:26:43]} {[%emt 00:00:02]} 40. Kd3
{[%clk 00:28:06]} {[%emt 00:00:03]} Nf2+ {[%emt 00:00:02]} 1/2-1/2